[Event "Romanian-ch Youth Open U20 2024"]
[Site "Eforie Nord"]
[Date "2024.04.19"]
[Round "9.4"]
[White "Antonica, Dragos-Andrei"]
[Black "Korcsek, Alexandru-David"]
[Result "1-0"]
[ECO "D32"]
[WhiteElo "2317"]
[BlackElo "2022"]
[Annotator "TA"]
[PlyCount "139"]
[EventDate "2024.04.10"]
[EventType "swiss"]
[EventCountry "ROU"]
[SourceTitle "playchess.com"]
[Source "ChessBase"]
[SourceQuality "1"]
[TimeControl "5400+30"]

{[%evp 19,139,29,20,24,32,25,50,47,48,28,63,51,54,60,56,49,82,78,70,71,65,63,59,52,56,66,76,74,89,88,89,96,95,81,87,87,87,93,96,96,96,96,118,96,111,97,109,109,113,0,121,0,121,121,121,98,121,121,121,121,121,121,121,121,121,98,121,98,98,98,121,121,121,121,121,99,99,98,145,98,145,99,99,99,145,95,145,145,145,145,145,145,145,145,145,145,145,145,145,145,145,8,8,8,8,8,29981,29982,29982,29983,29983,0,0,0,29983,29984,29984,29985,29985,29986,29987,29988]} 1. d4 {[%emt 0:00:03]} d5 {[%emt 0:00:07]} 2. c4 {[%emt 0:00:04]} e6 {[%emt 0:00:04]} 3. Nc3 {[%emt 0:00:28]} c5 {[%emt 0:00:06]} 4. cxd5 {[%emt 0:00:08]} exd5 {[%emt 0:00:06]} 5. Nf3 {[%emt 0:00:12]} Nc6 {[%emt 0:00:07]} 6. dxc5 {[%emt 0:00:21]} d4 {[%emt 0:00:12]} 7. Na4 {[%emt 0:00:04]} Bxc5 {[%emt 0:00:09] D32: Tarrasch Defence: Sidelines and lines without g3.} 8. Nxc5 {[%emt 0:00:06]} Qa5+ {[%emt 0:00:05]} 9. Bd2 {[%emt 0:00:04]} Qxc5 {[%emt 0:00:06]} 10. Rc1 {[%emt 0:00:20]} Qb6 {[%emt 0:00:05]} 11. e3 {[%emt 0:00:04]} Nf6 {[%emt 0:00:14]} 12. Bc4 {[%emt 0:01:39]} Bg4 {[%emt 0:00:23]} 13. O-O {[%emt 0:01:46]} O-O {[%emt 0:00:07]} 14. exd4 $1 {[%emt 0:01:00]} Nxd4 {[%emt 0:00:09]} 15. Be3 $1 {[%emt 0:00:49]} Bxf3 $1 {[%emt 0:00:08]} 16. Qxd4 {[%emt 0:01:11]} Qxd4 {[%emt 0:00:07]} 17. Bxd4 {[%emt 0:00:01]} Bd5 {[%emt 0:00:11]} 18. Bxf6 {[%emt 0:00:40]} Bxc4 {[%emt 0:00:05]} 19. Rxc4 {[%emt 0:00:01]} gxf6 {[%emt 0:00:07]} 20. Rfc1 {[%emt 0:06:34]} Rfd8 {[%emt 0:02:09]} 21. g3 $146 {[%emt 0:08:41]} ({Predecessor:} 21. h4 Rd2 22. R1c2 Rad8 23. Kh2 Kg7 24. a3 Rxc2 25. Rxc2 Rd3 26. f3 Rb3 27. Kg3 {½-½ Caspi,I (2468)-Lysyj,I (2589) Titled Tuesday intern op 15th Aug Late blitz 2023 (9)}) 21... Rd2 {[%emt 0:03:22]} 22. Rb4 {[%emt 0:07:52]} Re8 {[%emt 0:03:28]} 23. Rc7 {[%emt 0:06:32]} a5 {[%emt 0:04:30]} 24. Rf4 {[%emt 0:09:55]} (24. Rbxb7 $6 Re1+ 25. Kg2 Ree2 26. Rxf7 Rxf2+ 27. Kg1 (27. Kh3 $2 h5 $19) 27... Rg2+ 28. Kf1 Rxh2 $11) 24... Rxb2 {[%emt 0:06:22]} 25. Rxf6 {[%emt 0:00:39]} Rf8 {[%emt 0:00:20]} 26. Rf5 {[%emt 0:17:43]} a4 {[%emt 0:03:57]} 27. Rg5+ {[%emt 0:06:00]} Kh8 {[%emt 0:00:27]} 28. Ra5 {[%emt 0:00:13]} b5 {[%emt 0:02:35]} 29. Rb7 {[%emt 0:03:41]} Rxa2 {[%emt 0:00:18]} 30. Rbxb5 {[%emt 0:03:21]} Rc8 {[%emt 0:04:41]} 31. Rb4 {[%emt 0:01:33]} h6 {[%emt 0:06:37]} 32. Ra6 {[%emt 0:05:28]} (32. Rbxa4 $6 Rc1+ 33. Kg2 Rxa4 34. Rxa4 Rc2 $11) 32... Kh7 {[%emt 0:03:10]} 33. Ra7 {[%emt 0:01:03]} (33. Rbxa4 Rxa4 34. Rxa4 Rc5 $14) (33. Raxa4 Rxa4 34. Rxa4 Rc5 $11) 33... Rf8 {[%emt 0:00:34]} 34. Ra6 {[%emt 0:03:40]} (34. Raxa4 Rxa4 35. Rxa4 Re8 $11) (34. Rbxa4 $6 Rxa4 35. Rxa4 Rd8 $14) ({Better is} 34. Kg2 $16) 34... Rg8 {[%emt 0:01:39]} (34... Rc8 $1 $11 {remains equal.}) 35. Ra7 {[%emt 0:01:19]} (35. Rbxa4 $6 Rxa4 36. Rxa4 Rb8 $11) (35. Raxa4 $6 Rxa4 36. Rxa4 Rb8 $11) 35... Rf8 $1 {[%emt 0:01:40]} 36. Kg2 {[%emt 0:00:10]} ({Don't play} 36. Raxa4 $6 Rb8 $14) (36. Rbxa4 $6 Rxa4 37. Rxa4 Rb8 $14) 36... a3 {[%emt 0:04:37]} 37. Rb3 {[%emt 0:00:32]} Rb2 {[%emt 0:00:37]} 38. Rbxa3 {[%emt 0:00:10]} ({Of course not} 38. Raxa3 $6 Ra8 $11) 38... Rb6 {[%emt 0:00:09]} 39. Kh3 {[%emt 0:00:50]} Rf6 {[%emt 0:00:33]} 40. f4 {[%emt 0:00:21]} Rb8 {[%emt 0:01:41]} 41. Kh4 {[%emt 0:01:24]} Kg7 {[%emt 0:02:03]} 42. R3a5 {[%emt 0:01:24]} Rbb6 {[%emt 0:01:35]} 43. Ra8 {[%emt 0:00:36]} Rb2 {[%emt 0:02:00]} 44. h3 {[%emt 0:00:51]} Rfb6 {[%emt 0:00:19]} 45. Rc5 {[%emt 0:03:05]} Rb8 {[%emt 0:00:20]} 46. Rxb8 {[%emt 0:02:48]} Rxb8 {[%emt 0:00:06]} 47. Rc3 {[%emt 0:00:18]} Rb4 {[%emt 0:00:17]} 48. Kg4 {[%emt 0:01:03]} Rb1 {[%emt 0:00:39]} (48... Rb5 $142) 49. Ra3 {[%emt 0:01:49]} ({White should try} 49. Rf3) 49... Rc1 {[%emt 0:00:19]} (49... Rb5 $142) 50. Kh4 {[%emt 0:00:21]} (50. Rf3 $142) 50... Rc4 $16 {[%emt 0:00:16]} 51. Rf3 {[%emt 0:00:41]} Rc5 {[%emt 0:00:45]} (51... Kg6 $142) 52. g4 {[%emt 0:01:21]} (52. f5 $142 $1) 52... Ra5 {[%emt 0:00:39]} ({Black should play} 52... f5) 53. Rb3 $16 {[%emt 0:00:48]} Rc5 {[%emt 0:00:14]} 54. f5 {[%emt 0:00:36]} Rc6 {[%emt 0:00:36]} 55. Kh5 {[%emt 0:00:48]} Ra6 {[%emt 0:00:17]} 56. Rb7 {[%emt 0:01:19]} Rc6 {[%emt 0:05:52]} 57. Ra7 {[%emt 0:00:16]} Rb6 {[%emt 0:00:07]} 58. h4 {[%emt 0:00:19]} Rc6 {[%emt 0:00:17] [#]} 59. Rb7 $1 {[%emt 0:00:04]} Ra6 {[%emt 0:00:12]} 60. g5 {[%emt 0:01:09]} (60. Rb3 $16) 60... hxg5 $11 {[%emt 0:01:25]} 61. hxg5 {[%emt 0:00:21]} Kg8 $1 {[%emt 0:00:35]} 62. Rb8+ {[%emt 0:00:01]} Kg7 $2 {[%emt 0:01:18][%mdl 8192]} (62... Kh7 $11) 63. f6+ {[%emt 0:02:20]} Kh7 {[%emt 0:00:04] [#]} 64. Rb7 $1 {[%emt 0:00:24]} Kg8 {[%emt 0:00:40]} 65. Rb8+ $2 {[%emt 0:00:11]} (65. Kh6 {mates} Ra8 66. g6 fxg6 67. Kxg6 Rd8 68. Rg7+ Kf8 69. Rh7 Ke8 70. Rh8+ Kd7 71. Rxd8+ Kxd8 72. f7) 65... Kh7 $11 {[%emt 0:00:06]} 66. Rb7 $2 {[%emt 0:00:00][%mdl 8192]} (66. Rf8 $11 Ra7 (66... Rxf6 67. Rh8+ Kxh8 68. gxf6 $11) 67. Kg4) 66... Kg8 {[%emt 0:00:06]} 67. Kh6 {[%emt 0:00:09]} Ra8 {[%emt 0:00:31]} 68. g6 {[%emt 0:00:38]} fxg6 {[%emt 0:00:51]} 69. Kxg6 {[%emt 0:00:32]} Rc8 {[%emt 0:00:16]} 70. Rg7+ {[%emt 0:00:11]} 1-0